bitfinex/quotes_SOLUSD_20241222
["timestamp","ask_amount","ask_price","bid_price","bid_amount"]
[1734893259250,6.2545,183.05,182.99,42.04213439]
[1734893259459,6.2545,183.05,182.95,0.81952334]
[1734893259460,6.0976,183.09,183.03,42.04213439]
[1734893259760,1.6118,183.12,183.04,42.04213439]
[1734893260152,6.0976,183.13,183.06,42.04213439]
[1734893261134,6.0976,183.13,183.08,42.04213439]
[1734893261329,1.6118,183.16,183.09,65.81901839]
[1734893262459,1.6118,183.16,183.09,42.04213439]
[1734893262671,1.6118,183.16,183.07,55.69803439]
[1734893262848,1.6118,183.16,183.08,65.81901839]
[1734893263167,1.6118,183.16,183.09,42.04213439]
[1734893263562,6.0976,183.17,183.1,42.04213439]
[1734893263769,6.0976,183.17,183.11,42.04213439]
[1734893264079,6.0976,183.17,183.09,13.6544]
[1734893264080,6.0976,183.17,183.09,42.04213439]
[1734893264241,6.0976,183.17,183.07,50.14206779]
[1734893264442,6.0976,183.17,183.07,8.0999334]
[1734893265053,6.0976,183.17,183.07,50.14206779]
[1734893265377,6.0976,183.17,183.09,42.04213439]
[1734893265674,6.0976,183.17,183.08,42.04213439]
[1734893266169,6.0976,183.17,183.08,25.80279962]
[1734893266381,6.0976,183.17,183.07,25.80279962]
[1734893266673,6.0976,183.17,183.06,25.80279962]
[1734893266880,6.0976,183.17,183.07,25.80279962]
[1734893269276,6.0976,183.17,183.09,25.80279962]
[1734893278289,6.0976,183.17,183.07,25.80279962]
[1734893278469,6.0976,183.17,183.09,25.80279962]
[1734893282062,6.0976,183.17,183.05,23.776884]
[1734893282063,20.0,183.14,183.05,25.80279962]
[1734893282252,1.625,183.13,183.03,25.80279962]
[1734893282457,21.625,183.13,183.05,25.80279962]
[1734893282692,21.625,183.13,183.02,13.6597]
[1734893282693,6.0976,183.17,183.08,25.80279962]
[1734893282990,6.0976,183.17,183.1,25.80279962]
[1734893283195,6.0976,183.17,183.06,8.0999334]
[1734893283372,6.0976,183.17,183.08,25.80279962]
[1734893283575,6.0976,183.17,183.07,49.57968362]
[1734893283756,6.0976,183.17,183.07,25.80279962]
[1734893284154,6.0976,183.17,183.08,25.80279962]
[1734893284696,6.0976,183.17,183.07,25.80279962]
[1734893284879,20.0,183.14,183.06,33.90273302]
[1734893285568,20.0,183.14,183.06,25.80279962]
[1734893286090,20.0,183.14,182.99,12.78504196]
[1734893286091,6.0976,183.17,183.08,25.80279962]
[1734893286299,6.0976,183.17,183.11,25.80279962]
[1734893286593,6.0976,183.17,183.1,25.80279962]
[1734893287990,1.625,183.18,183.12,25.80279962]
[1734893288205,8.2236,183.22,183.13,25.80279962]
[1734893289002,21.8687,183.22,183.11,25.80279962]
[1734893289168,21.8687,183.22,183.09,25.80279962]
[1734893289369,23.776884,183.21,183.08,25.80279962]
[1734893289674,20.0,183.18,183.07,25.80279962]
[1734893289890,20.0,183.18,183.06,25.80279962]
[1734893290087,20.0,183.14,183.05,25.80279962]
[1734893290291,20.0,183.14,183.06,25.80279962]
[1734893290292,26.5986,183.14,183.06,25.80279962]
[1734893291095,1.625,183.13,183.02,25.80279962]
[1734893291700,1.625,183.13,183.03,25.80279962]
[1734893291901,20.0,183.12,183.06,25.80279962]
[1734893292273,1.625,183.13,183.07,25.80279962]
[1734893293109,1.625,183.13,183.06,25.80279962]
[1734893295274,1.625,183.13,183.07,25.80279962]
[1734893295473,1.625,183.13,183.06,25.80279962]
[1734893296307,1.625,183.13,183.05,25.80279962]
[1734893296598,20.0,183.11,183.02,25.80279962]
[1734893297171,20.0,183.11,183.03,25.80279962]
[1734893297475,20.0,183.1,183.03,25.80279962]
[1734893298291,20.0,183.1,183.01,25.80279962]
[1734893298604,20.0,183.08,182.99,25.80279962]
[1734893298905,20.0,183.08,182.98,25.80279962]
[1734893299701,6.5986,183.07,182.96,25.80279962]
[1734893301505,6.5986,183.07,182.98,25.80279962]
[1734893302097,6.5986,183.07,182.99,25.80279962]
[1734893303804,6.5986,183.07,183.0,25.80279962]
[1734893305408,6.5986,183.07,182.99,25.80279962]
[1734893305711,6.5986,183.07,182.91,16.1149]
[1734893306013,6.5986,183.07,182.97,25.80279962]
[1734893306178,6.5986,183.07,182.98,25.80279962]
[1734893306499,20.0,183.04,182.91,30.60190143]
[1734893306819,20.0,183.04,182.95,25.80279962]
[1734893307492,20.0,183.03,182.95,25.80279962]
[1734893308300,20.0,183.03,182.88,25.80279962]
[1734893308301,20.0,183.0,182.9,25.80279962]
[1734893308612,6.3433,182.99,182.9,25.80279962]
[1734893311531,6.3433,182.99,182.91,25.80279962]
[1734893312219,6.3433,182.99,182.93,25.80279962]
[1734893312891,6.5187,183.02,182.94,25.80279962]
[1734893313425,6.5187,183.02,182.93,25.80279962]
[1734893317632,6.5187,183.02,182.91,25.80279962]
[1734893317826,20.0,182.99,182.91,25.80279962]
[1734893318309,20.0,182.99,182.92,25.80279962]
[1734893318705,20.0,182.99,182.91,25.80279962]
[1734893319605,20.0,182.99,182.9,25.80279962]
[1734893319934,21.5442,182.98,182.88,25.80279962]
[1734893320118,20.0,182.96,182.87,25.80279962]
[1734893320415,20.0,182.96,182.88,25.80279962]
[1734893320811,20.0,182.96,182.87,25.80279962]
[1734893321614,20.0,182.96,182.86,8.1]
[1734893321833,20.0,182.96,182.86,33.90279962]
[1734893322646,6.6045,182.95,182.84,0.6840666]
[1734893322946,20.0,182.92,182.84,0.6840666]
[1734893323106,20.0,182.92,182.84,26.48686622]
[1734893324028,6.6045,182.95,182.86,25.80279962]
[1734893324242,6.6045,182.95,182.88,25.80279962]
[1734893324612,6.6045,182.95,182.87,25.80279962]
[1734893324822,6.6045,182.95,182.88,25.80279962]
[1734893325342,6.6045,182.95,182.89,25.80279962]
[1734893326706,6.6045,182.95,182.88,25.80279962]
[1734893328123,6.6045,182.95,182.89,25.80279962]
[1734893328436,6.6045,182.95,182.88,25.80279962]
[1734893331045,6.6045,182.95,182.87,25.80279962]
[1734893331749,6.6045,182.95,182.88,25.80279962]
[1734893331945,1.5442,182.98,182.9,25.80279962]
[1734893332443,1.5442,182.98,182.89,25.80279962]
[1734893333742,20.0,182.96,182.88,25.80279962]
[1734893334046,20.0,182.96,182.86,33.90279962]
[1734893334540,20.0,182.94,182.86,8.1]
[1734893335560,20.0,182.94,182.84,26.48686622]
[1734893335930,23.776884,182.93,182.84,0.6840666]
[1734893336157,6.266,182.92,182.84,0.6840666]
[1734893336326,1.5808,182.91,182.84,0.6840666]
[1734893338427,1.5808,182.91,182.85,25.80279962]
[1734893338949,7.8468,182.96,182.87,25.80279962]
[1734893339248,7.8468,182.96,182.88,25.80279962]
[1734893340128,7.8468,182.96,182.87,25.80279962]
[1734893340333,7.8468,182.96,182.86,25.80279962]
[1734893340534,7.8468,182.96,182.87,25.80279962]
[1734893341145,7.8468,182.96,182.88,25.80279962]
[1734893341349,7.8468,182.96,182.89,25.80279962]
[1734893342224,7.8468,182.96,182.88,25.80279962]
[1734893343254,7.8468,182.96,182.87,25.80279962]
[1734893344953,7.8468,182.96,182.86,25.80279962]
[1734893345550,20.0,182.93,182.84,26.48686622]
[1734893346126,20.0,182.93,182.85,25.80279962]
[1734893346638,20.0,182.93,182.84,26.48686622]
[1734893346949,20.0,182.93,182.85,25.80279962]
[1734893347159,20.0,182.93,182.87,25.80279962]
[1734893347331,7.8468,182.96,182.89,25.80279962]
[1734893347643,7.8468,182.96,182.9,25.80279962]
[1734893347846,7.8468,182.96,182.91,25.80279962]
[1734893348231,7.8468,182.96,182.89,25.80279962]
[1734893349840,7.8468,182.96,182.91,25.80279962]
[1734893350754,7.8468,182.96,182.89,25.80279962]
[1734893350959,7.8468,182.96,182.88,39.47259962]
[1734893351652,7.8468,182.96,182.86,33.90279962]
[1734893351834,20.0,182.92,182.84,0.6840666]
[1734893354957,23.776884,182.91,182.84,0.6840666]
[1734893355666,6.2362,182.87,182.84,0.6840666]
[1734893357041,1.5756,182.9,182.84,0.6840666]
[1734893358377,1.5756,182.95,182.87,25.80279962]
[1734893358679,1.5756,182.95,182.89,25.80279962]
[1734893359273,1.5756,182.95,182.88,25.80279962]
[1734893359475,1.5756,182.95,182.89,25.80279962]
[1734893359963,1.5756,182.95,182.87,25.80279962]
[1734893360176,20.0,182.94,182.86,25.80279962]
[1734893360869,20.0,182.94,182.87,25.80279962]
[1734893361185,1.5756,182.95,182.89,25.80279962]
[1734893361643,1.5756,182.95,182.87,25.80279962]
[1734893362061,20.0,182.94,182.86,25.80279962]
[1734893362362,20.0,182.94,182.85,25.80279962]
[1734893363676,20.0,182.94,182.84,26.48686622]
[1734893365182,20.0,182.9,182.84,0.6840666]
[1734893365849,20.0,182.93,182.84,26.48686622]
[1734893366048,20.0,182.93,182.84,0.6840666]
[1734893366049,23.776884,182.92,182.84,0.6840666]
[1734893371690,21.543,182.88,182.84,0.6840666]
[1734893372454,23.776884,182.87,182.84,0.6840666]
[1734893372655,20.0,182.85,182.84,0.6840666]
[1734893374189,43.776884,182.85,182.84,0.6840666]
[1734893379685,50.294784,182.85,182.84,0.6840666]
[1734893382505,6.5179,182.85,182.84,0.6840666]
[1734893382676,1.543,182.88,182.84,0.6840666]
[1734893383624,13.6709,182.87,182.84,0.6840666]
[1734893383988,20.0,182.85,182.84,0.6840666]
[1734893386508,13.6668,182.93,182.84,0.6840666]
[1734893386807,5.70000081,182.94,182.86,25.89299436]
[1734893387014,5.70000081,182.94,182.84,0.6840666]
[1734893387015,4.10830081,182.94,182.87,25.89299436]
[1734893387217,22.15705886,182.97,182.87,25.89299436]
[1734893387510,22.15705886,182.97,182.86,25.89299436]
[1734893388109,22.15705886,182.97,182.85,25.89299436]
[1734893388310,13.6641,182.97,182.85,25.89299436]
[1734893388813,20.0,182.94,182.85,25.89299436]
[1734893389411,20.0,182.94,182.84,26.57706096]
[1734893389912,20.0,182.94,182.85,25.89299436]
[1734893391320,1.6039,182.99,182.89,25.89299436]
[1734893392304,1.6039,182.99,182.87,25.89299436]
[1734893392711,20.0,182.97,182.87,25.89299436]
[1734893392885,6.08,183.0,182.91,25.89299436]
[1734893393209,1.5286,183.03,182.94,25.89299436]
[1734893393385,1.5286,183.03,182.93,25.89299436]
[1734893394919,20.0,183.02,182.93,25.89299436]
[1734893397328,20.0,183.02,182.89,28.70608392]
[1734893397329,20.0,183.02,182.94,25.89299436]
[1734893397805,20.0,183.02,182.93,25.89299436]
[1734893398000,20.0,183.02,182.94,25.89299436]
[1734893398718,20.0,183.02,182.95,25.89299436]
[1734893398926,20.0,183.02,182.94,25.89299436]
[1734893399719,20.0,183.02,182.95,25.89299436]
[1734893400325,1.5286,183.08,182.99,25.89299436]
[1734893400912,1.5286,183.08,182.97,25.89299436]
[1734893401121,1.5286,183.08,182.95,33.99299436]
[1734893401495,20.0,183.04,182.94,27.41629436]
[1734893401695,20.0,183.03,182.94,27.41629436]
[1734893403536,20.0,182.99,182.91,25.89299436]
[1734893403823,20.0,182.99,182.89,25.89299436]
[1734893405320,20.0,182.98,182.89,25.89299436]
[1734893405630,20.0,182.98,182.88,25.89299436]
[1734893406026,20.0,182.99,182.92,25.89299436]
[1734893406401,20.0,182.99,182.91,25.89299436]
[1734893407128,6.0789,183.02,182.93,25.89299436]
[1734893407507,1.6548,183.05,182.94,25.89299436]
[1734893407707,20.0,183.03,182.94,25.89299436]
[1734893408829,20.0,183.03,182.95,25.89299436]
[1734893409014,20.0,183.03,182.94,25.89299436]
[1734893413631,20.0,183.03,182.93,25.89299436]
[1734893413811,43.776884,183.02,182.92,25.89299436]
[1734893415123,43.776884,183.02,182.93,25.89299436]
[1734893417432,20.0,183.0,182.91,25.89299436]
[1734893417612,20.0,182.99,182.9,25.89299436]
[1734893417812,20.0,182.99,182.91,25.89299436]
[1734893418235,20.0,182.99,182.92,25.89299436]
[1734893418423,20.0,183.03,182.94,25.89299436]
[1734893418623,20.0,183.03,182.93,25.89299436]
[1734893418962,20.0,183.03,182.94,25.89299436]
[1734893420025,20.0,183.03,183.0,1.094]
[1734893422440,23.776884,183.02,183.0,1.094]
[1734893423637,37.436584,183.02,183.0,1.094]
[1734893423839,20.0,182.98,182.87,16.15229639]
[1734893424025,23.776884,182.97,182.87,16.15229639]
[1734893424225,20.0,182.94,182.86,17.71749639]
[1734893424430,20.0,182.94,182.84,16.83636299]
[1734893424630,43.776884,182.93,182.84,0.6840666]
[1734893424834,50.274284,182.93,182.84,0.6840666]
[1734893425750,63.940984,182.93,182.84,0.6840666]
[1734893428545,1.5141,182.92,182.84,0.6840666]
[1734893428721,20.0,182.88,182.84,0.6840666]
[1734893430267,20.0,182.85,182.84,0.6840666]
[1734893430694,43.776884,182.85,182.84,0.6840666]
[1734893431042,51.660784,182.85,182.84,0.6840666]
[1734893434988,7.8839,182.9,182.84,0.6840666]
[1734893435966,13.6664,182.93,182.84,0.6840666]
[1734893436677,7.8839,182.94,182.84,0.6840666]
[1734893437286,21.5501,182.94,182.84,0.6840666]
[1734893437465,23.776884,182.93,182.84,0.6840666]
[1734893438094,20.0,182.9,182.84,0.6840666]
[1734893438780,20.0,182.89,182.84,0.6840666]
[1734893441799,20.0,182.86,182.84,0.6840666]
[1734893442785,20.0,182.85,182.84,0.6840666]
[1734893443266,33.6724,182.85,182.84,0.6840666]
[1734893443472,57.449284,182.85,182.84,0.6840666]
[1734893450076,57.449284,182.85,182.75,1.6117]
[1734893450077,20.0,182.81,182.75,1.6117]
[1734893450280,20.0,182.81,182.73,6.2964]
[1734893450480,20.0,182.81,182.7,25.8789965]
[1734893450481,20.0,182.77,182.7,1.5965]
[1734893454818,20.0,182.76,182.7,1.5965]
[1734893455691,20.0,182.77,182.7,1.5965]
[1734893456939,20.0,182.79,182.7,27.4754965]
[1734893457843,20.0,182.79,182.7,1.5965]
[1734893459644,20.0,182.77,182.7,1.5965]
[1734893460714,20.0,182.75,182.7,1.5965]
[1734893461150,13.6776,182.78,182.7,1.5965]
[1734893461320,43.776884,182.8,182.7,1.5965]
[1734893461715,20.0,182.76,182.7,1.5965]
[1734893462639,20.0,182.8,182.7,1.5965]
[1734893462942,20.0,182.76,182.7,1.5965]
[1734893463644,20.0,182.75,182.7,1.5965]
[1734893464942,20.0,182.76,182.7,1.5965]
[1734893465129,20.0,182.78,182.7,1.5965]
[1734893472247,20.0,182.78,182.7,2.0358856]
[1734893473128,20.0,182.78,182.7,18.23731558]
[1734893473850,20.0,182.78,182.7,2.0358856]
[1734893475756,15.84202058,182.84,182.72,23.776884]
[1734893475964,8.49295886,182.88,182.75,22.43652998]
[1734893476331,8.49295886,182.88,182.76,16.20142998]
[1734893476537,22.16425886,182.87,182.76,16.20142998]
[1734893477559,20.0,182.84,182.76,16.20142998]
[1734893477853,6.34010168,182.91,182.82,17.72152998]
[1734893477854,4.11021264,182.91,182.82,17.72152998]
[1734893478062,4.11021264,182.91,182.84,39.97831398]
[1734893478236,4.11021264,182.91,182.85,16.20142998]
[1734893478431,4.11021264,182.91,182.84,17.02150488]
[1734893478856,12.6031715,182.97,182.88,36.20142998]
[1734893479165,13.6597,183.02,182.88,36.20142998]
[1734893479166,13.6597,183.02,182.89,16.20142998]
[1734893479733,7.85770576,183.04,182.9,16.20142998]
[1734893479953,7.85770576,183.04,182.91,1.5201]
[1734893479954,4.11021264,183.04,182.91,1.5201]
[1734893480140,4.11021264,183.04,182.91,27.37161803]
[1734893480346,4.11021264,183.04,182.92,6.2351]
[1734893480658,4.11021264,183.04,182.96,25.85151803]
[1734893480866,2.1460516,183.09,182.96,25.85151803]
[1734893481049,13.654,183.1,182.97,25.85151803]
[1734893481365,13.654,183.1,182.96,25.85151803]
[1734893482164,20.0,183.07,182.96,25.85151803]
[1734893482374,28.56119805,183.03,182.96,25.85151803]
[1734893482663,8.56119805,183.03,182.96,25.85151803]
[1734893483643,20.0,183.07,182.96,25.85151803]
[1734893483984,15.15239805,183.12,183.0,25.85151803]
[1734893484144,8.56119805,183.12,183.0,25.85151803]
[1734893484347,12.66598477,183.13,183.03,25.85151803]
[1734893484544,12.66598477,183.13,183.04,25.85151803]
[1734893484760,8.56119805,183.13,183.05,25.85151803]
[1734893484961,8.56119805,183.13,183.04,25.85151803]
[1734893485144,8.56119805,183.13,183.03,25.85151803]
[1734893485461,13.6508,183.14,183.01,32.24981803]
[1734893485954,23.776884,183.13,183.01,32.24981803]
[1734893486574,20.0,183.1,183.01,32.24981803]
[1734893487006,20.0,183.06,182.97,27.48271803]
[1734893487178,20.0,183.06,182.98,25.85151803]
[1734893488601,20.0,183.06,182.99,25.85151803]
[1734893488998,20.0,183.06,182.98,25.85151803]
[1734893489205,20.0,183.06,182.97,27.48271803]
[1734893489381,20.0,183.06,182.98,25.85151803]
[1734893491023,20.0,183.06,182.99,25.85151803]
[1734893493306,20.0,183.12,183.03,25.85151803]
[1734893493510,13.6506,183.15,183.03,25.85151803]
[1734893493689,13.6506,183.15,183.04,25.85151803]
[1734893494277,13.6506,183.15,182.99,8.91950405]
[1734893494278,13.6506,183.15,183.03,25.85151803]
[1734893494480,13.6506,183.15,183.01,25.85151803]
[1734893494704,13.6506,183.15,183.0,25.85151803]
[1734893494911,23.776884,183.14,183.0,25.85151803]
[1734893495591,23.776884,183.1,183.0,25.85151803]
[1734893495794,20.0,183.07,182.99,25.85151803]
[1734893496111,20.0,183.07,182.98,25.85151803]
[1734893496814,20.0,183.07,182.99,25.85151803]
[1734893497706,20.0,183.07,182.97,1.6312]
[1734893498105,20.0,183.06,182.97,1.6312]
[1734893499603,20.0,183.05,182.97,1.6312]
[1734893500583,20.0,183.03,182.94,25.85151803]
[1734893500899,20.0,183.01,182.93,25.85151803]
[1734893501586,20.0,183.03,182.94,25.85151803]
[1734893501785,20.0,183.03,182.95,25.85151803]
[1734893502702,20.0,183.03,182.94,25.85151803]
[1734893503209,20.0,183.03,182.93,25.85151803]
[1734893503503,20.0,183.03,182.92,27.49071803]
[1734893504605,20.0,183.03,182.87,8.1045]
[1734893504606,20.0,182.99,182.87,8.1045]
[1734893504787,20.0,182.99,182.88,25.85151803]
[1734893505114,20.0,182.97,182.87,8.1045]
[1734893505314,20.0,182.97,182.87,1.5476]
[1734893505807,23.776884,182.96,182.87,1.5476]
[1734893505988,20.0,182.93,182.83,33.95601803]
[1734893506803,20.0,182.92,182.83,33.95601803]
[1734893507011,20.0,182.92,182.84,25.85151803]
[1734893507513,20.0,182.92,182.83,27.39911803]
[1734893507821,20.0,182.92,182.83,1.5476]
[1734893510415,15.28,182.94,182.83,25.85151803]
[1734893510617,20.0,182.95,182.87,25.85151803]
[1734893510798,13.6631,182.98,182.87,25.85151803]
[1734893511913,20.0,182.95,182.87,25.85151803]
[1734893512102,20.0,182.94,182.87,25.85151803]
[1734893512814,20.0,182.97,182.89,25.85151803]
[1734893513022,1.6137,182.99,182.89,25.85151803]
[1734893514318,20.0,182.97,182.88,25.85151803]
[1734893514619,20.0,182.97,182.86,27.47821803]
[1734893515125,20.0,182.97,182.87,25.85151803]
[1734893515624,20.0,182.97,182.88,25.85151803]
[1734893517620,20.0,182.97,182.87,25.85151803]
[1734893518001,20.0,182.97,182.89,25.85151803]
[1734893519030,20.0,182.93,182.84,25.85151803]
[1734893520439,20.0,182.93,182.85,25.85151803]
[1734893521019,20.0,182.94,182.86,25.85151803]
[1734893521207,20.0,182.94,182.84,25.85151803]
[1734893521603,20.0,182.94,182.83,25.85151803]
[1734893521798,20.0,182.89,182.78,32.15341803]
[1734893522004,20.0,182.89,182.77,27.47821803]
[1734893523026,20.0,182.85,182.77,1.6267]
[1734893523232,20.0,182.85,182.74,32.25781803]
[1734893524129,20.0,182.85,182.73,25.85151803]
[1734893524348,20.0,182.8,182.72,0.4393856]
[1734893525037,20.0,182.81,182.72,0.4393856]
[1734893525242,20.0,182.77,182.72,0.4393856]
[1734893525642,20.0,182.73,182.72,8.56e-05]
[1734893529342,19.2788596,182.73,182.72,8.56e-05]
[1734893531449,49.4083436,182.73,182.72,8.56e-05]
[1734893533954,51.0146436,182.73,182.72,8.56e-05]
[1734893535257,37.458984,182.72,182.59,8.92106891]
[1734893535467,20.0,182.69,182.59,8.92106891]
[1734893536470,33.6845,182.69,182.59,8.92106891]
[1734893537946,23.776884,182.68,182.56,1.6609]
[1734893538239,20.0,182.65,182.56,1.6609]
[1734893538628,20.0,182.61,182.56,1.6609]
[1734893540063,33.6906,182.61,182.56,1.6609]
[1734893540266,13.6906,182.61,182.52,1.6609]
[1734893541364,20.0,182.61,182.52,1.6609]
[1734893541560,20.0,182.6,182.52,1.6609]
[1734893542160,20.0,182.61,182.52,1.6609]
[1734893542868,20.0,182.57,182.52,1.6609]
[1734893546865,13.6931,182.58,182.5,6.5256]
[1734893547375,13.6931,182.58,182.5,32.37711803]
[1734893547563,33.6905,182.61,182.51,26.67309727]
[1734893547979,33.6905,182.61,182.5,14.6256]
[1734893548485,13.6905,182.61,182.5,14.6256]
[1734893548870,23.776884,182.63,182.5,6.5256]
[1734893549057,23.776884,182.63,182.48,28.32337616]
[1734893549680,20.0,182.6,182.48,28.32337616]
[1734893549883,20.0,182.56,182.48,28.32337616]
[1734893552783,20.0,182.56,182.48,2.47185813]
[1734893554458,20.0,182.56,182.48,28.32337616]
[1734893555387,23.776884,182.63,182.49,25.85151803]
[1734893555563,13.6896,182.62,182.52,25.85151803]
[1734893555885,13.6896,182.62,182.53,25.85151803]
[1734893556781,13.6896,182.62,182.52,33.95151803]
[1734893556782,20.0,182.59,182.52,33.95151803]
[1734893557388,20.0,182.62,182.52,8.1]
[1734893557567,43.776884,182.61,182.48,35.60161803]
[1734893558491,20.0,182.57,182.48,35.60161803]
[1734893559586,20.0,182.57,182.48,1.6501]
[1734893559587,13.6941,182.56,182.48,1.6501]
[1734893562489,13.6941,182.56,182.48,27.50161803]
[1734893562806,13.6941,182.56,182.48,1.6501]
[1734893569213,82.5,182.77,182.48,9.7501]
[1734893569400,13.6888,182.63,182.5,25.85151803]
[1734893570718,33.6914,182.6,182.5,25.85151803]
[1734893571020,33.6914,182.6,182.49,26.67321293]
[1734893573610,33.6914,182.6,182.54,6.7339046]
[1734893574000,33.6914,182.6,182.54,0.6735046]
[1734893574196,20.0,182.56,182.54,4.6e-06]
[1734893574425,20.0,182.56,182.42,8.1]
[1734893574426,20.0,182.52,182.41,1.5978]
[1734893574813,20.0,182.52,182.41,9.6978]
[1734893575291,20.0,182.52,182.41,1.5978]
[1734893575496,20.0,182.48,182.41,1.5978]
[1734893576037,19.0,182.48,182.41,1.5978]
[1734893577034,13.7008,182.47,182.41,1.5978]
[1734893577334,13.7008,182.47,182.38,20.0]
[1734893577634,23.776884,182.46,182.38,20.0]
[1734893578224,13.7008,182.47,182.38,14.579]
[1734893578225,20.0,182.39,182.38,14.579]
[1734893578535,23.776884,182.38,182.36,4.6e-06]
[1734893579037,13.7083,182.37,182.36,4.6e-06]
[1734893581116,37.485184,182.37,182.36,4.6e-06]
[1734893581436,37.485184,182.37,182.23,35.54931803]
[1734893581437,20.0,182.34,182.23,35.54931803]
[1734893581626,20.0,182.33,182.23,9.6978]
[1734893582226,20.0,182.34,182.23,35.54931803]
[1734893582639,20.0,182.3,182.23,9.6978]
[1734893583320,20.0,182.3,182.24,23.776884]
[1734893585228,13.7114,182.33,182.24,50.45118925]
[1734893585429,13.7114,182.33,182.25,25.85151803]
[1734893585618,13.7114,182.33,182.24,50.45118925]
[1734893585945,13.7114,182.33,182.24,24.59967122]
[1734893586241,20.0,182.34,182.24,32.69967122]
[1734893588847,33.711,182.34,182.24,32.69967122]
[1734893589857,33.711,182.34,182.24,8.1]
[1734893590022,61.1323,182.34,182.23,9.6978]
[1734893590953,20.0,182.3,182.18,10.4235046]
[1734893592225,23.776884,182.25,182.18,0.6735046]
[1734893592422,20.0,182.22,182.18,0.6735046]
[1734893593241,13.7204,182.21,182.18,0.6735046]
[1734893593440,13.7204,182.21,182.18,4.6e-06]
[1734893593441,20.0,182.19,182.18,4.6e-06]
[1734893594226,20.0,182.18,182.07,1.6435]
[1734893594425,23.776884,182.17,182.07,1.6435]
[1734893594725,20.0,182.18,182.07,1.6435]
[1734893595151,20.0,182.18,182.02,1.6435]
[1734893595152,20.0,182.14,182.02,1.6435]
[1734893595353,20.0,182.1,182.02,9.7435]
[1734893595529,13.7264,182.13,182.02,9.7435]
[1734893595730,20.0,182.1,182.02,9.7435]
[1734893595943,20.0,182.1,182.02,8.1]
[1734893596342,23.776884,182.09,182.0,0.6735046]
[1734893596831,20.0,182.06,182.0,0.6735046]
[1734893597349,13.7324,182.05,182.0,0.6735046]
[1734893598154,20.0,182.02,182.0,4.6e-06]
[1734893599663,13.7355,182.01,182.0,4.6e-06]
[1734893603850,27.4649,182.05,182.0,4.6e-06]
[1734893604248,13.7317,182.06,182.0,4.6e-06]
[1734893606266,20.0,182.08,182.0,4.6e-06]
[1734893607679,27.4569,182.11,182.0,4.6e-06]
[1734893607680,20.0,182.04,182.0,4.6e-06]
[1734893608465,20.0,182.01,182.0,4.6e-06]
[1734893613448,41.2087,182.0,181.86,8.1]
[1734893613756,20.0,181.97,181.83,16.2168]
[1734893613966,20.0,181.97,181.83,58.65939721]
[1734893614471,20.0,181.93,181.83,16.2168]
[1734893615647,20.0,181.96,181.83,9.6694]
[1734893616577,20.0,181.92,181.83,9.6694]
[1734893616768,20.0,181.92,181.83,52.11199721]
[1734893617562,20.0,181.96,181.83,1.5694]
[1734893617759,20.0,181.94,181.83,9.6694]
[1734893618096,20.0,181.94,181.84,43.26716085]
[1734893618281,13.7364,182.0,181.89,26.15086796]
[1734893618576,13.7364,182.0,181.9,26.97515964]
[1734893618981,27.4676,182.04,181.93,1.5694]
[1734893618982,13.7339,182.04,181.93,1.5694]
[1734893619155,13.7339,182.04,181.94,34.25086796]
[1734893619558,13.7339,182.04,181.94,8.1]
[1734893619773,41.1843,182.11,181.94,34.25086796]
[1734893620149,41.1843,182.11,181.94,50.55386596]
[1734893620652,20.0,182.08,181.94,8.1]
[1734893620864,23.776884,182.1,181.94,8.1]
[1734893621073,13.7287,182.1,181.97,42.45386596]
[1734893621283,13.7287,182.1,181.98,50.55386596]
[1734893621466,13.7287,182.1,181.98,8.1]
[1734893621777,13.7287,182.1,181.98,50.55386596]
[1734893622191,2.23580458,182.14,181.99,50.55386596]